[Event "FIDE U16 Olympiad_boards_1-80"]
[Site "Eindhoven, Netherlands"]
[Date "2023.08.14"]
[Round "2.17"]
[White "Kanov, Nikola"]
[Black "Begmuratov, Khumoyun"]
[Result "1-0"]
[TimeControl "2700+10"]
[WhiteElo "2283"]
[BlackElo "2270"]

1. e4 {[%clk 00:45:18]} {[%emt 00:00:03]} c5 {[%clk 00:45:17]} {[%emt
00:00:03]} 2. Nf3 {[%clk 00:45:25]} {[%emt 00:00:03]} d6 {[%clk 00:45:26]}
{[%emt 00:00:02]} 3. d4 {[%clk 00:45:32]} {[%emt 00:00:03]} cxd4 {[%clk
00:45:33]} {[%emt 00:00:02]} 4. Nxd4 {[%clk 00:45:39]} {[%emt 00:00:03]} Nf6
{[%clk 00:45:41]} {[%emt 00:00:02]} 5. Nc3 {[%clk 00:45:45]} {[%emt 00:00:04]}
a6 {[%clk 00:45:49]} {[%emt 00:00:03]} 6. Be3 {[%clk 00:45:45]} {[%emt
00:00:10]} e5 {[%clk 00:45:56]} {[%emt 00:00:02]} 7. Nb3 {[%clk 00:45:42]}
{[%emt 00:00:12]} Be6 {[%clk 00:43:58]} {[%emt 00:02:09]} 8. h3 {[%clk
00:45:28]} {[%emt 00:00:24]} Be7 {[%clk 00:42:31]} {[%emt 00:01:37]} 9. f4
{[%clk 00:44:43]} {[%emt 00:00:54]} exf4 {[%clk 00:38:51]} {[%emt 00:03:51]} 10.
Bxf4 {[%clk 00:44:51]} {[%emt 00:00:02]} O-O {[%clk 00:36:28]} {[%emt
00:02:33]} 11. Qe2 {[%clk 00:44:57]} {[%emt 00:00:03]} Nc6 {[%clk 00:31:08]}
{[%emt 00:05:30]} 12. O-O-O {[%clk 00:44:59]} {[%emt 00:00:08]} Qc7 {[%clk
00:30:00]} {[%emt 00:01:18]} 13. g4 {[%clk 00:43:09]} {[%emt 00:02:00]} Ne5
{[%clk 00:28:15]} {[%emt 00:01:56]} 14. Nd4 {[%clk 00:40:58]} {[%emt 00:02:21]}
Rfc8 {[%clk 00:22:08]} {[%emt 00:06:17]} 15. Nf5 {[%clk 00:35:31]} {[%emt
00:05:36]} Bf8 {[%clk 00:16:54]} {[%emt 00:05:24]} 16. g5 {[%clk 00:26:51]}
{[%emt 00:08:50]} Nfd7 {[%clk 00:16:48]} {[%emt 00:00:16]} 17. Nd5 {[%clk
00:22:43]} {[%emt 00:04:18]} Bxd5 {[%clk 00:16:33]} {[%emt 00:00:25]} 18. Rxd5
{[%clk 00:21:02]} {[%emt 00:01:52]} Nb6 {[%clk 00:15:09]} {[%emt 00:01:33]} 19.
Rd4 {[%clk 00:17:53]} {[%emt 00:03:20]} Nbc4 {[%clk 00:09:38]} {[%emt
00:05:41]} 20. Bxe5 {[%clk 00:07:55]} {[%emt 00:10:07]} Nxe5 {[%clk 00:09:46]}
{[%emt 00:00:02]} 21. Ne3 {[%clk 00:06:16]} {[%emt 00:01:48]} Nc6 {[%clk
00:05:10]} {[%emt 00:04:47]} 22. Rd1 {[%clk 00:04:38]} {[%emt 00:01:48]} Qa5
{[%clk 00:03:10]} {[%emt 00:02:10]} 23. Qf2 {[%clk 00:04:15]} {[%emt 00:00:33]}
Qxa2 {[%clk 00:02:03]} {[%emt 00:01:17]} 24. Bc4 {[%clk 00:03:47]} {[%emt
00:00:39]} Qa1+ {[%clk 00:02:12]} 25. Kd2 {[%clk 00:03:56]} Qa5+ {[%clk
00:02:21]} 26. Ke2 {[%clk 00:03:11]} {[%emt 00:00:55]} Ne5 {[%clk 00:01:43]}
{[%emt 00:00:48]} 27. Rd5 {[%clk 00:03:20]} {[%emt 00:00:02]} Qb4 {[%clk
00:01:19]} {[%emt 00:00:34]} 28. Bb3 {[%clk 00:03:19]} {[%emt 00:00:11]} Rc7
{[%clk 00:00:52]} {[%emt 00:00:36]} 29. Rhd1 {[%clk 00:02:55]} {[%emt
00:00:34]} Qxe4 {[%clk 00:00:36]} {[%emt 00:00:27]} 30. R5d4 {[%clk 00:02:13]}
{[%emt 00:00:52]} Qg6 {[%clk 00:00:37]} {[%emt 00:00:08]} 31. Rf4 {[%clk
00:02:10]} {[%emt 00:00:13]} Qh5+ {[%clk 00:00:31]} {[%emt 00:00:17]} 32. Ke1
{[%clk 00:02:03]} {[%emt 00:00:17]} Re8 {[%clk 00:00:38]} {[%emt 00:00:03]} 33.
Kd2 {[%clk 00:01:45]} {[%emt 00:00:28]} d5 {[%clk 00:00:18]} {[%emt 00:00:30]}
34. Nxd5 {[%clk 00:01:41]} {[%emt 00:00:13]} Rd8 {[%clk 00:00:23]} {[%emt
00:00:05]} 35. Kc1 {[%clk 00:01:48]} {[%emt 00:00:03]} Rcd7 {[%clk 00:00:23]}
{[%emt 00:00:10]} 36. h4 {[%clk 00:01:47]} {[%emt 00:00:11]} a5 {[%clk
00:00:14]} {[%emt 00:00:20]} 37. Rf5 {[%clk 00:01:37]} {[%emt 00:00:20]} Bd6
{[%clk 00:00:15]} {[%emt 00:00:09]} 38. Rg1 {[%clk 00:00:43]} {[%emt 00:01:03]}
Kh8 {[%clk 00:00:13]} {[%emt 00:00:13]} 39. Kb1 {[%clk 00:00:33]} {[%emt
00:00:20]} b5 {[%clk 00:00:13]} {[%emt 00:00:10]} 40. g6 {[%clk 00:00:39]}
{[%emt 00:00:04]} Qh6 {[%clk 00:00:18]} {[%emt 00:00:05]} 41. gxf7 {[%clk
00:00:36]} {[%emt 00:00:12]} Rf8 {[%clk 00:00:19]} {[%emt 00:00:09]} 42. Nf4
{[%clk 00:00:42]} {[%emt 00:00:04]} g6 {[%clk 00:00:12]} {[%emt 00:00:17]} 43.
Rf6 {[%clk 00:00:46]} {[%emt 00:00:07]} a4 {[%clk 00:00:12]} {[%emt 00:00:09]}
44. Be6 {[%clk 00:00:51]} {[%emt 00:00:05]} Be7 {[%clk 00:00:16]} {[%emt
00:00:07]} 45. Bxd7 {[%clk 00:00:22]} {[%emt 00:00:39]} Bxf6 {[%clk 00:00:24]}
46. Be8 {[%clk 00:00:26]} {[%emt 00:00:06]} Nxf7 {[%clk 00:00:14]} {[%emt
00:00:21]} 47. Ne6 {[%clk 00:00:23]} {[%emt 00:00:13]} Rxe8 {[%clk 00:00:16]}
{[%emt 00:00:08]} 48. Qxf6+ {[%clk 00:00:31]} {[%emt 00:00:02]} Kg8 {[%clk
00:00:26]} 49. Rf1 {[%clk 00:00:38]} {[%emt 00:00:03]} Nh8 {[%clk 00:00:12]}
{[%emt 00:00:23]} 50. h5 {[%clk 00:00:25]} {[%emt 00:00:23]} a3 {[%clk
00:00:13]} {[%emt 00:00:10]} 51. bxa3 {[%clk 00:00:32]} {[%emt 00:00:03]} Rb8
{[%clk 00:00:11]} {[%emt 00:00:11]} 52. Qe7 {[%clk 00:00:14]} {[%emt 00:00:28]}
Ra8 {[%clk 00:00:13]} {[%emt 00:00:09]} 53. Nd8 {[%clk 00:00:20]} {[%emt
00:00:04]} 1-0

[Event "FIDE U16 Olympiad_boards_1-80"]
[Site "Eindhoven, Netherlands"]
[Date "2023.08.14"]
[Round "2.18"]
[White "Bakhrillaev, Bakhrom"]
[Black "Georgiev, Konstantin"]
[Result "1-0"]
[TimeControl "2700+10"]
[WhiteElo "2144"]
[BlackElo "1995"]

1. d4 {[%clk 00:45:19]} Nf6 {[%clk 00:45:18]} {[%emt 00:00:02]} 2. c4 {[%clk
00:45:27]} {[%emt 00:00:02]} e6 {[%clk 00:45:25]} {[%emt 00:00:03]} 3. Nc3
{[%clk 00:45:36]} Bb4 {[%clk 00:45:28]} {[%emt 00:00:08]} 4. e3 {[%clk
00:45:45]} {[%emt 00:00:02]} b6 {[%clk 00:45:35]} {[%emt 00:00:02]} 5. Bd2
{[%clk 00:45:36]} {[%emt 00:00:20]} Bb7 {[%clk 00:45:40]} {[%emt 00:00:05]} 6.
Nf3 {[%clk 00:45:43]} {[%emt 00:00:03]} Bxc3 {[%clk 00:45:36]} {[%emt
00:00:15]} 7. Bxc3 {[%clk 00:45:51]} {[%emt 00:00:02]} Ne4 {[%clk 00:45:41]}
{[%emt 00:00:03]} 8. Bb4 {[%clk 00:45:58]} {[%emt 00:00:04]} d6 {[%clk
00:45:47]} {[%emt 00:00:04]} 9. Bd3 {[%clk 00:44:44]} {[%emt 00:01:24]} Nd7
{[%clk 00:43:39]} {[%emt 00:02:17]} 10. O-O {[%clk 00:44:46]} {[%emt 00:00:09]}
O-O {[%clk 00:43:08]} {[%emt 00:00:42]} 11. Nd2 {[%clk 00:43:47]} {[%emt
00:01:08]} Nxd2 {[%clk 00:42:27]} {[%emt 00:00:51]} 12. Qxd2 {[%clk 00:43:25]}
{[%emt 00:00:32]} Qe7 {[%clk 00:37:51]} {[%emt 00:04:46]} 13. Rae1 {[%clk
00:40:54]} {[%emt 00:02:41]} a5 {[%clk 00:36:11]} {[%emt 00:01:50]} 14. Bc3
{[%clk 00:40:45]} {[%emt 00:00:19]} e5 {[%clk 00:31:07]} {[%emt 00:05:14]} 15.
f4 {[%clk 00:39:38]} {[%emt 00:01:17]} e4 {[%clk 00:26:43]} {[%emt 00:04:33]}
16. Be2 {[%clk 00:39:44]} {[%emt 00:00:05]} d5 {[%clk 00:23:59]} {[%emt
00:02:54]} 17. Rc1 {[%clk 00:37:19]} {[%emt 00:02:35]} Rfd8 {[%clk 00:21:09]}
{[%emt 00:03:00]} 18. b3 {[%clk 00:34:17]} {[%emt 00:03:12]} f5 {[%clk
00:17:06]} {[%emt 00:04:13]} 19. Kh1 {[%clk 00:26:14]} {[%emt 00:08:13]} Qe6
{[%clk 00:15:49]} {[%emt 00:01:27]} 20. Rg1 {[%clk 00:25:04]} {[%emt 00:01:21]}
Nf6 {[%clk 00:15:16]} {[%emt 00:00:42]} 21. h3 {[%clk 00:23:56]} {[%emt
00:01:18]} Ba6 {[%clk 00:08:29]} {[%emt 00:06:57]} 22. Bb2 {[%clk 00:18:51]}
{[%emt 00:05:15]} h5 {[%clk 00:08:03]} {[%emt 00:00:36]} 23. cxd5 {[%clk
00:16:37]} {[%emt 00:02:24]} Nxd5 {[%clk 00:06:20]} {[%emt 00:01:53]} 24. Bxh5
{[%clk 00:16:45]} {[%emt 00:00:02]} Rac8 {[%clk 00:04:00]} {[%emt 00:02:30]} 25.
a3 {[%clk 00:07:03]} {[%emt 00:09:52]} c5 {[%clk 00:02:42]} {[%emt 00:01:28]}
26. Rgd1 {[%clk 00:00:44]} {[%emt 00:06:29]} c4 {[%clk 00:02:11]} {[%emt
00:00:41]} 27. bxc4 {[%clk 00:00:37]} {[%emt 00:00:17]} Bxc4 {[%clk 00:02:19]}
{[%emt 00:00:02]} 28. Be2 {[%clk 00:00:34]} {[%emt 00:00:13]} Bb3 {[%clk
00:01:59]} {[%emt 00:00:30]} 29. Re1 {[%clk 00:00:43]} Qd7 {[%clk 00:02:06]}
{[%emt 00:00:04]} 30. g4 {[%clk 00:00:44]} {[%emt 00:00:10]} Nf6 {[%clk
00:01:42]} {[%emt 00:00:34]} 31. gxf5 {[%clk 00:00:43]} {[%emt 00:00:11]} Qxf5
{[%clk 00:01:47]} {[%emt 00:00:04]} 32. Kh2 {[%clk 00:00:47]} {[%emt 00:00:06]}
Be6 {[%clk 00:01:52]} {[%emt 00:00:05]} 33. Bf1 {[%clk 00:00:54]} {[%emt
00:00:03]} Kf7 {[%clk 00:02:00]} {[%emt 00:00:02]} 34. Rxc8 {[%clk 00:00:56]}
{[%emt 00:00:08]} Rxc8 {[%clk 00:02:09]} 35. Rc1 {[%clk 00:00:51]} {[%emt
00:00:15]} Rh8 {[%clk 00:02:06]} {[%emt 00:00:13]} 36. Rc7+ {[%clk 00:01:00]}
{[%emt 00:00:01]} Kf8 {[%clk 00:02:11]} {[%emt 00:00:05]} 37. Qg2 {[%clk
00:00:45]} {[%emt 00:00:25]} Rh7 {[%clk 00:01:58]} {[%emt 00:00:23]} 38. Kg1
{[%clk 00:00:40]} {[%emt 00:00:16]} Nd5 {[%clk 00:01:59]} {[%emt 00:00:09]} 39.
Rb7 {[%clk 00:00:27]} {[%emt 00:00:22]} Nxe3 {[%clk 00:02:05]} {[%emt
00:00:04]} 40. Rb8+ {[%clk 00:00:37]} Ke7 {[%clk 00:01:49]} {[%emt 00:00:27]}
41. Rb7+ {[%clk 00:00:18]} {[%emt 00:00:28]} Kd8 {[%clk 00:00:49]} {[%emt
00:01:10]} 42. Qg5+ {[%clk 00:00:13]} {[%emt 00:00:16]} Qxg5+ {[%clk 00:00:56]}
{[%emt 00:00:03]} 43. fxg5 {[%clk 00:00:22]} Nxf1 {[%emt 00:00:02]} 44. Kxf1
Rxh3 {[%clk 00:01:05]} {[%emt 00:00:09]} 45. Rxb6 {[%clk 00:00:25]} {[%emt
00:00:17]} Bc4+ {[%clk 00:01:09]} {[%emt 00:00:05]} 46. Kg2 {[%clk 00:00:29]}
{[%emt 00:00:07]} Rh5 {[%clk 00:01:10]} {[%emt 00:00:09]} 47. Bc1 {[%clk
00:00:29]} {[%emt 00:00:10]} Rh4 {[%clk 00:01:13]} {[%emt 00:00:07]} 48. Rg6
{[%clk 00:00:17]} {[%emt 00:00:22]} Be2 {[%clk 00:01:00]} {[%emt 00:00:23]} 49.
Rxg7 {[%clk 00:00:21]} {[%emt 00:00:06]} Bf3+ {[%clk 00:01:09]} {[%emt
00:00:02]} 50. Kf2 {[%clk 00:00:16]} {[%emt 00:00:14]} Rh2+ {[%clk 00:01:17]}
{[%emt 00:00:02]} 51. Kg3 {[%clk 00:00:26]} Rg2+ {[%clk 00:01:23]} {[%emt
00:00:03]} 52. Kf4 {[%clk 00:00:35]} Rc2 {[%clk 00:01:29]} {[%emt 00:00:04]} 53.
Be3 {[%clk 00:00:41]} {[%emt 00:00:05]} Ke8 {[%clk 00:01:33]} {[%emt 00:00:06]}
54. Ra7 {[%clk 00:00:38]} {[%emt 00:00:12]} Rc6 {[%clk 00:00:53]} {[%emt
00:00:49]} 55. d5 {[%clk 00:00:36]} {[%emt 00:00:14]} Rd6 {[%clk 00:00:58]}
{[%emt 00:00:04]} 56. Rxa5 {[%clk 00:00:39]} {[%emt 00:00:07]} Kf7 {[%clk
00:01:07]} {[%emt 00:00:02]} 57. Kf5 {[%clk 00:00:34]} {[%emt 00:00:14]} Bg2
{[%clk 00:00:32]} {[%emt 00:00:45]} 58. g6+ {[%clk 00:00:34]} {[%emt 00:00:10]}
Kg8 {[%clk 00:00:20]} {[%emt 00:00:22]} 59. Ra8+ {[%clk 00:00:43]} {[%emt
00:00:01]} Kg7 {[%clk 00:00:28]} {[%emt 00:00:03]} 60. Bd4+ {[%clk 00:00:52]}
{[%emt 00:00:01]} 1-0

[Event "FIDE U16 Olympiad_boards_1-80"]
[Site "Eindhoven, Netherlands"]
[Date "2023.08.14"]
[Round "2.19"]
[White "Todev, Simeon"]
[Black "Omonov, Asrorjon"]
[Result "1-0"]
[TimeControl "2700+10"]
[WhiteElo "1932"]
[BlackElo "2051"]

1. e4 {[%clk 00:45:17]} {[%emt 00:00:03]} c6 {[%clk 00:45:09]} {[%emt
00:00:11]} 2. d4 {[%clk 00:45:25]} {[%emt 00:00:03]} d5 {[%clk 00:45:18]}
{[%emt 00:00:01]} 3. e5 {[%clk 00:45:33]} {[%emt 00:00:02]} c5 {[%clk
00:45:25]} {[%emt 00:00:03]} 4. c3 {[%clk 00:45:19]} {[%emt 00:00:24]} Nc6
{[%clk 00:45:27]} {[%emt 00:00:08]} 5. Nf3 {[%clk 00:44:15]} {[%emt 00:01:12]}
Bg4 {[%clk 00:45:21]} {[%emt 00:00:16]} 6. Be2 {[%clk 00:44:19]} {[%emt
00:00:07]} e6 {[%clk 00:44:32]} {[%emt 00:00:59]} 7. Be3 {[%clk 00:43:09]}
{[%emt 00:01:21]} g6 {[%clk 00:43:52]} {[%emt 00:00:49]} 8. Qd2 {[%clk
00:42:49]} {[%emt 00:00:29]} Bg7 {[%clk 00:41:21]} {[%emt 00:02:41]} 9. Na3
{[%clk 00:42:22]} {[%emt 00:00:37]} a6 {[%clk 00:37:53]} {[%emt 00:03:38]} 10.
O-O {[%clk 00:42:27]} {[%emt 00:00:05]} Nge7 {[%clk 00:37:52]} {[%emt
00:00:12]} 11. Nc2 {[%clk 00:41:08]} {[%emt 00:01:29]} O-O {[%clk 00:35:44]}
{[%emt 00:02:17]} 12. b4 {[%clk 00:40:50]} {[%emt 00:00:29]} cxd4 {[%clk
00:30:50]} {[%emt 00:05:04]} 13. cxd4 {[%clk 00:40:49]} {[%emt 00:00:11]} Nf5
{[%clk 00:30:47]} {[%emt 00:00:14]} 14. h3 {[%clk 00:40:41]} {[%emt 00:00:17]}
Bxf3 {[%clk 00:30:48]} {[%emt 00:00:08]} 15. Bxf3 {[%clk 00:40:50]} {[%emt
00:00:02]} f6 {[%clk 00:30:34]} {[%emt 00:00:24]} 16. exf6 {[%clk 00:40:37]}
{[%emt 00:00:23]} Qxf6 {[%clk 00:30:35]} {[%emt 00:00:09]} 17. Rfe1 {[%clk
00:40:18]} {[%emt 00:00:29]} Rae8 {[%clk 00:29:09]} {[%emt 00:01:36]} 18. Rad1
{[%clk 00:40:23]} {[%emt 00:00:05]} Nd6 {[%clk 00:18:36]} {[%emt 00:10:42]} 19.
Bg5 {[%clk 00:36:15]} {[%emt 00:04:18]} Qf7 {[%clk 00:18:17]} {[%emt 00:00:30]}
20. Bh6 {[%clk 00:35:54]} {[%emt 00:00:31]} Nc4 {[%clk 00:12:38]} {[%emt
00:05:49]} 21. Qc1 {[%clk 00:35:10]} {[%emt 00:00:54]} b5 {[%clk 00:12:39]}
{[%emt 00:00:09]} 22. Bxg7 {[%clk 00:34:44]} {[%emt 00:00:35]} Qxg7 {[%clk
00:09:12]} {[%emt 00:03:38]} 23. Qg5 {[%clk 00:33:19]} {[%emt 00:01:35]} Qf7
{[%clk 00:03:36]} {[%emt 00:05:46]} 24. Re2 {[%clk 00:30:31]} {[%emt 00:02:57]}
Nd6 {[%clk 00:00:50]} {[%emt 00:02:57]} 25. Qe3 {[%clk 00:27:04]} {[%emt
00:03:37]} Nc4 {[%clk 00:00:22]} {[%emt 00:00:38]} 26. Qc3 {[%clk 00:25:33]}
{[%emt 00:01:41]} Ne7 {[%clk 00:00:16]} {[%emt 00:00:17]} 27. Ne3 {[%clk
00:24:45]} {[%emt 00:00:57]} Nf5 {[%clk 00:00:14]} {[%emt 00:00:11]} 28. Nxf5
{[%clk 00:24:10]} {[%emt 00:00:46]} Qxf5 {[%clk 00:00:14]} {[%emt 00:00:11]} 29.
Rde1 {[%clk 00:24:08]} {[%emt 00:00:11]} Kg7 {[%clk 00:00:14]} {[%emt
00:00:10]} 30. Bg4 {[%clk 00:23:02]} {[%emt 00:01:16]} Qf6 {[%emt 00:00:12]} 31.
Bxe6 {[%clk 00:22:45]} {[%emt 00:00:25]} Rd8 {[%clk 00:00:18]} {[%emt
00:00:07]} 32. Bg4 {[%clk 00:22:08]} {[%emt 00:00:46]} Nd6 {[%clk 00:00:19]}
{[%emt 00:00:10]} 33. Bf3 {[%clk 00:17:04]} {[%emt 00:05:14]} Nf5 {[%clk
00:00:22]} {[%emt 00:00:07]} 34. Re5 {[%clk 00:15:40]} {[%emt 00:01:33]} Nh4
{[%clk 00:00:20]} {[%emt 00:00:13]} 35. R1e3 {[%clk 00:09:50]} {[%emt
00:06:00]} Rd7 {[%clk 00:00:13]} {[%emt 00:00:16]} 36. Qe1 {[%clk 00:08:17]}
{[%emt 00:01:43]} Rdf7 {[%clk 00:00:11]} {[%emt 00:00:12]} 37. Rxd5 {[%clk
00:07:22]} {[%emt 00:01:05]} Nf5 {[%clk 00:00:12]} {[%emt 00:00:10]} 38. Re6
{[%clk 00:06:52]} {[%emt 00:00:40]} Qh4 {[%clk 00:00:21]} {[%emt 00:00:01]} 39.
Re4 {[%clk 00:06:54]} {[%emt 00:00:07]} Qh6 {[%clk 00:00:24]} {[%emt 00:00:07]}
40. Bg4 {[%clk 00:06:30]} {[%emt 00:00:34]} Rc8 {[%clk 00:00:19]} {[%emt
00:00:15]} 41. Rc5 {[%clk 00:06:27]} {[%emt 00:00:13]} Rd8 {[%clk 00:00:13]}
{[%emt 00:00:16]} 42. Bxf5 {[%clk 00:06:33]} {[%emt 00:00:04]} gxf5 {[%clk
00:00:18]} {[%emt 00:00:06]} 43. Re7 {[%clk 00:06:41]} {[%emt 00:00:02]} Rd7
{[%clk 00:00:13]} {[%emt 00:00:15]} 44. Rxd7 {[%clk 00:06:10]} {[%emt
00:00:41]} Rxd7 {[%clk 00:00:19]} {[%emt 00:00:03]} 45. Rxf5 {[%clk 00:06:18]}
{[%emt 00:00:02]} Qg6 {[%clk 00:00:13]} {[%emt 00:00:16]} 46. Qe5+ {[%clk
00:06:26]} {[%emt 00:00:01]} Kg8 {[%clk 00:00:18]} {[%emt 00:00:06]} 47. Rg5
{[%clk 00:06:34]} {[%emt 00:00:01]} 1-0

[Event "FIDE U16 Olympiad_boards_1-80"]
[Site "Eindhoven, Netherlands"]
[Date "2023.08.14"]
[Round "2.20"]
[White "Khamdamova, Afruza"]
[Black "Karaivanova, Petya"]
[Result "1-0"]
[TimeControl "2700+10"]
[WhiteElo "2112"]
[BlackElo "1680"]

1. e4 {[%clk 00:45:18]} {[%emt 00:00:03]} e5 {[%clk 00:45:18]} {[%emt
00:00:02]} 2. Nf3 {[%clk 00:45:26]} {[%emt 00:00:02]} Nc6 {[%clk 00:45:26]}
{[%emt 00:00:02]} 3. Bb5 {[%clk 00:45:34]} {[%emt 00:00:02]} a6 {[%clk
00:45:34]} {[%emt 00:00:01]} 4. Ba4 {[%clk 00:45:42]} {[%emt 00:00:02]} d6
{[%clk 00:45:42]} {[%emt 00:00:02]} 5. O-O {[%clk 00:45:46]} {[%emt 00:00:07]}
Bd7 {[%clk 00:45:50]} {[%emt 00:00:02]} 6. c3 {[%clk 00:45:48]} {[%emt
00:00:08]} g6 {[%clk 00:45:57]} {[%emt 00:00:04]} 7. d4 {[%clk 00:45:37]}
{[%emt 00:00:20]} Bg7 {[%clk 00:45:50]} {[%emt 00:00:17]} 8. Re1 {[%clk
00:45:06]} {[%emt 00:00:41]} Nge7 {[%clk 00:45:33]} {[%emt 00:00:27]} 9. Be3
{[%clk 00:41:20]} {[%emt 00:03:56]} O-O {[%clk 00:45:09]} {[%emt 00:00:33]} 10.
Nbd2 {[%clk 00:41:28]} {[%emt 00:00:03]} h6 {[%clk 00:44:54]} {[%emt 00:00:25]}
11. h3 {[%clk 00:40:51]} {[%emt 00:00:46]} Kh7 {[%clk 00:45:02]} {[%emt
00:00:02]} 12. Bc2 {[%clk 00:40:22]} {[%emt 00:00:40]} f5 {[%clk 00:43:43]}
{[%emt 00:01:29]} 13. exf5 {[%clk 00:38:54]} {[%emt 00:01:38]} Nxf5 {[%clk
00:43:17]} {[%emt 00:00:35]} 14. dxe5 {[%clk 00:36:27]} {[%emt 00:02:38]} Nxe5
{[%clk 00:42:09]} {[%emt 00:01:18]} 15. Bf4 {[%clk 00:28:36]} {[%emt 00:08:01]}
Nxf3+ {[%clk 00:30:17]} {[%emt 00:12:02]} 16. Nxf3 {[%clk 00:28:44]} {[%emt
00:00:02]} Nh4 {[%clk 00:30:25]} {[%emt 00:00:02]} 17. Nxh4 {[%clk 00:28:42]}
{[%emt 00:00:12]} Qxh4 {[%clk 00:30:32]} {[%emt 00:00:03]} 18. Bg3 {[%clk
00:28:51]} {[%emt 00:00:01]} Qf6 {[%clk 00:29:50]} {[%emt 00:00:52]} 19. Be4
{[%clk 00:27:31]} {[%emt 00:01:30]} Rab8 {[%clk 00:26:06]} {[%emt 00:03:54]} 20.
Re3 {[%clk 00:26:56]} {[%emt 00:00:45]} Qg5 {[%clk 00:20:48]} {[%emt 00:05:29]}
21. h4 {[%clk 00:21:32]} {[%emt 00:05:33]} Qb5 {[%clk 00:19:12]} {[%emt
00:01:46]} 22. h5 {[%clk 00:19:59]} {[%emt 00:01:43]} Bf5 {[%clk 00:13:44]}
{[%emt 00:05:37]} 23. hxg6+ {[%clk 00:19:59]} {[%emt 00:00:11]} Bxg6 {[%clk
00:12:18]} {[%emt 00:01:36]} 24. Bxg6+ {[%clk 00:18:05]} {[%emt 00:02:04]} Kxg6
{[%clk 00:12:26]} {[%emt 00:00:01]} 25. Re7 {[%clk 00:17:01]} {[%emt 00:01:15]}
Qf5 {[%clk 00:08:35]} {[%emt 00:04:02]} 26. Rxc7 {[%clk 00:15:12]} {[%emt
00:01:58]} Be5 {[%clk 00:08:27]} {[%emt 00:00:18]} 27. Bxe5 {[%clk 00:10:22]}
{[%emt 00:05:01]} dxe5 {[%clk 00:06:02]} {[%emt 00:02:35]} 28. Qe2 {[%clk
00:10:14]} {[%emt 00:00:18]} e4 {[%clk 00:03:35]} {[%emt 00:02:37]} 29. Rd1
{[%clk 00:09:23]} {[%emt 00:01:00]} Rbd8 {[%clk 00:03:43]} {[%emt 00:00:02]} 30.
Rxd8 {[%clk 00:08:59]} {[%emt 00:00:34]} Rxd8 {[%clk 00:03:52]} {[%emt
00:00:01]} 31. Rxb7 {[%clk 00:08:05]} {[%emt 00:01:04]} Rd6 {[%clk 00:01:51]}
{[%emt 00:02:11]} 32. Re7 {[%clk 00:04:51]} {[%emt 00:03:24]} e3 {[%clk
00:00:27]} {[%emt 00:01:35]} 33. Rxe3 {[%clk 00:04:40]} {[%emt 00:00:21]} Qb1+
{[%clk 00:00:24]} {[%emt 00:00:12]} 34. Kh2 {[%clk 00:04:49]} {[%emt 00:00:02]}
Qxa2 {[%clk 00:00:21]} {[%emt 00:00:12]} 35. Qg4+ {[%clk 00:04:56]} {[%emt
00:00:03]} Kf7 {[%clk 00:00:24]} {[%emt 00:00:08]} 36. Qf4+ {[%clk 00:05:03]}
{[%emt 00:00:03]} Rf6 {[%clk 00:00:31]} {[%emt 00:00:02]} 37. Qc7+ {[%clk
00:05:12]} {[%emt 00:00:02]} Kg6 {[%clk 00:00:23]} {[%emt 00:00:18]} 38. Rg3+
{[%clk 00:05:16]} {[%emt 00:00:06]} Kf5 {[%clk 00:00:25]} {[%emt 00:00:08]} 39.
Qc5+ {[%clk 00:04:58]} {[%emt 00:00:27]} Ke6 {[%clk 00:00:25]} {[%emt
00:00:10]} 40. Re3+ {[%clk 00:05:07]} {[%emt 00:00:01]} Kf7 {[%clk 00:00:34]}
{[%emt 00:00:01]} 41. Qe7+ {[%clk 00:05:17]} {[%emt 00:00:01]} Kg6 {[%clk
00:00:37]} {[%emt 00:00:07]} 42. Rg3+ {[%clk 00:05:26]} 1-0